[Event "Late-Titled-Tuesday-Blitz-February-27-2024"]
[Site "Chess.com"]
[Date "2024.02.27"]
[Round "6"]
[White "ArturoCaceres"]
[Black "pirulillo"]
[Result "0-1"]
[WhiteElo "2454"]
[BlackElo "2247"]
[TimeControl "180+1"]
[EndTime "15:05:08 PST"]
[Termination "pirulillo won by resignation"]

1. b3 {[%clk 0:03:00.9]} 1... Nf6 {[%clk 0:02:25.3]} 2. Bb2 {[%clk 0:03:00.7]}
2... g6 {[%clk 0:02:21.4]} 3. Nf3 {[%clk 0:02:59.4]} 3... Bg7 {[%clk 0:02:21]}
4. e3 {[%clk 0:02:56.8]} 4... d6 {[%clk 0:02:20.5]} 5. d4 {[%clk 0:02:55.6]}
5... O-O {[%clk 0:02:19.2]} 6. Bd3 {[%clk 0:02:50.5]} 6... Nbd7 {[%clk
0:02:20.1]} 7. O-O {[%clk 0:02:50.3]} 7... e5 {[%clk 0:02:19.7]} 8. Nbd2 {[%clk
0:02:45.3]} 8... Re8 {[%clk 0:02:14.2]} 9. e4 {[%clk 0:02:43.1]} 9... a5 {[%clk
0:02:05.5]} 10. a3 {[%clk 0:02:40.5]} 10... Qe7 {[%clk 0:02:00.8]} 11. d5 {[%clk
0:02:40.3]} 11... Nh5 {[%clk 0:01:56.6]} 12. c4 {[%clk 0:02:34.4]} 12... Rf8
{[%clk 0:01:53.5]} 13. Qc2 {[%clk 0:02:33.7]} 13... Nc5 {[%clk 0:01:50.2]} 14.
Ne1 {[%clk 0:02:23.6]} 14... f5 {[%clk 0:01:39.1]} 15. b4 {[%clk 0:02:10.6]}
15... axb4 {[%clk 0:01:35.9]} 16. axb4 {[%clk 0:02:10]} 16... Rxa1 {[%clk
0:01:36.8]} 17. Bxa1 {[%clk 0:02:10.4]} 17... Nxd3 {[%clk 0:01:23.3]} 18. Nxd3
{[%clk 0:02:09.7]} 18... Nf4 {[%clk 0:01:24.2]} 19. Nxf4 {[%clk 0:02:01.7]}
19... exf4 {[%clk 0:01:25.1]} 20. Bxg7 {[%clk 0:01:59.6]} 20... Qxg7 {[%clk
0:01:26]} 21. f3 {[%clk 0:01:36.8]} 21... g5 {[%clk 0:01:19.8]} 22. exf5 {[%clk
0:01:22.8]} 22... Qd4+ {[%clk 0:01:15.5]} 23. Kh1 {[%clk 0:01:21.2]} 23... Bxf5
{[%clk 0:01:16.4]} 24. Ne4 {[%clk 0:01:17.3]} 24... Ra8 {[%clk 0:00:33.3]} 25.
h3 {[%clk 0:01:12.1]} 25... h6 {[%clk 0:00:29.3]} 26. Rd1 {[%clk 0:00:59.4]}
26... Ra1 {[%clk 0:00:27.7]} 27. Rxa1 {[%clk 0:00:59.2]} 27... Qxa1+ {[%clk
0:00:28]} 28. Kh2 {[%clk 0:01:00.1]} 28... Qe5 {[%clk 0:00:27.9]} 29. Qd3 {[%clk
0:00:50.7]} 29... Kf7 {[%clk 0:00:26.1]} 30. c5 {[%clk 0:00:41.4]} 30... Bxe4
{[%clk 0:00:25.4]} 31. Qxe4 {[%clk 0:00:41.6]} 31... Qxe4 {[%clk 0:00:25.4]} 32.
fxe4 {[%clk 0:00:42.5]} 32... Kf6 {[%clk 0:00:25.5]} 33. g4 {[%clk 0:00:40.9]}
33... Ke5 {[%clk 0:00:24.6]} 0-1

[Event "Late-Titled-Tuesday-Blitz-February-27-2024"]
[Site "Chess.com"]
[Date "2024.02.27"]
[Round "6"]
[White "Mikayel99"]
[Black "ckgchess"]
[Result "0-1"]
[WhiteElo "2562"]
[BlackElo "2881"]
[TimeControl "180+1"]
[EndTime "15:05:13 PST"]
[Termination "ckgchess won by resignation"]

1. e4 {[%clk 0:03:00.3]} 1... e5 {[%clk 0:02:59.9]} 2. Nf3 {[%clk 0:02:59.9]}
2... Nf6 {[%clk 0:03:00.4]} 3. Nxe5 {[%clk 0:02:58.5]} 3... d5 {[%clk
0:03:00.3]} 4. d4 {[%clk 0:02:56]} 4... Nxe4 {[%clk 0:03:00]} 5. Bd3 {[%clk
0:02:56.1]} 5... Nd7 {[%clk 0:03:00]} 6. O-O {[%clk 0:02:53.9]} 6... Nxe5 {[%clk
0:02:57.4]} 7. dxe5 {[%clk 0:02:54.8]} 7... Nc5 {[%clk 0:02:57.9]} 8. Re1 {[%clk
0:02:45.1]} 8... Be7 {[%clk 0:02:56.7]} 9. Nc3 {[%clk 0:02:44.5]} 9... Nxd3
{[%clk 0:02:51.4]} 10. Qxd3 {[%clk 0:02:45.4]} 10... c6 {[%clk 0:02:51.3]} 11.
Ne2 {[%clk 0:02:42.5]} 11... O-O {[%clk 0:02:50.7]} 12. Nd4 {[%clk 0:02:41.3]}
12... Re8 {[%clk 0:02:48.6]} 13. Bf4 {[%clk 0:02:34]} 13... Bc5 {[%clk
0:02:27.3]} 14. Nf5 {[%clk 0:02:21.1]} 14... Qb6 {[%clk 0:01:37.2]} 15. Bg3
{[%clk 0:01:45.5]} 15... Qxb2 {[%clk 0:01:28.2]} 16. Nd6 {[%clk 0:01:34.5]}
16... Re7 {[%clk 0:01:09]} 17. Ne4 {[%clk 0:00:52.4]} 17... Bb6 {[%clk
0:00:51.2]} 18. Bh4 {[%clk 0:00:27.7]} 18... dxe4 {[%clk 0:00:45]} 19. Qg3
{[%clk 0:00:19.6]} 19... Qxe5 {[%clk 0:00:39.2]} 20. Bxe7 {[%clk 0:00:18.5]}
20... Qxe7 {[%clk 0:00:40.1]} 21. Rad1 {[%clk 0:00:16.9]} 21... Bf5 {[%clk
0:00:38.4]} 22. Qf4 {[%clk 0:00:13.9]} 22... Bg6 {[%clk 0:00:37.9]} 23. h4
{[%clk 0:00:14.2]} 23... h5 {[%clk 0:00:37.8]} 24. Qg5 {[%clk 0:00:12.6]} 24...
Qxg5 {[%clk 0:00:35.6]} 25. hxg5 {[%clk 0:00:13.5]} 25... Rd8 {[%clk 0:00:31]}
26. Rxd8+ {[%clk 0:00:13.5]} 26... Bxd8 {[%clk 0:00:31.9]} 27. Rd1 {[%clk
0:00:13.1]} 27... Bxg5 {[%clk 0:00:32.2]} 28. Rd7 {[%clk 0:00:13.5]} 28... e3
{[%clk 0:00:27.9]} 29. fxe3 {[%clk 0:00:12.7]} 29... Bxe3+ {[%clk 0:00:28.8]}
30. Kh2 {[%clk 0:00:12.6]} 30... b5 {[%clk 0:00:27.1]} 31. Rc7 {[%clk
0:00:10.6]} 31... Bf4+ {[%clk 0:00:25.1]} 0-1

[Event "Late-Titled-Tuesday-Blitz-February-27-2024"]
[Site "Chess.com"]
[Date "2024.02.27"]
[Round "6"]
[White "FernandoArauzAlonso"]
[Black "kripri"]
[Result "0-1"]
[WhiteElo "2559"]
[BlackElo "2361"]
[TimeControl "180+1"]
[EndTime "15:05:16 PST"]
[Termination "kripri won by resignation"]

1. g3 {[%clk 0:02:55.2]} 1... e5 {[%clk 0:02:57.7]} 2. Bg2 {[%clk 0:02:55.3]}
2... d5 {[%clk 0:02:58.3]} 3. d3 {[%clk 0:02:54]} 3... Nf6 {[%clk 0:02:58.7]} 4.
Nf3 {[%clk 0:02:54.1]} 4... Nc6 {[%clk 0:02:57.4]} 5. O-O {[%clk 0:02:52.9]}
5... Be7 {[%clk 0:02:57.7]} 6. Nbd2 {[%clk 0:02:51.8]} 6... O-O {[%clk 0:02:58]}
7. c3 {[%clk 0:02:45.8]} 7... h6 {[%clk 0:02:55.6]} 8. Qc2 {[%clk 0:02:45.1]}
8... Be6 {[%clk 0:02:55.6]} 9. e4 {[%clk 0:02:45.4]} 9... d4 {[%clk 0:02:52.3]}
10. a3 {[%clk 0:02:38]} 10... a5 {[%clk 0:02:49.8]} 11. c4 {[%clk 0:02:34.1]}
11... Qd7 {[%clk 0:02:43.1]} 12. Re1 {[%clk 0:02:31.6]} 12... Bh3 {[%clk
0:02:42]} 13. Bh1 {[%clk 0:02:31.5]} 13... Qe6 {[%clk 0:02:16.7]} 14. b3 {[%clk
0:02:26.9]} 14... Nd7 {[%clk 0:02:16.7]} 15. Nf1 {[%clk 0:01:58.6]} 15... Nc5
{[%clk 0:02:14.3]} 16. N3d2 {[%clk 0:01:57.3]} 16... h5 {[%clk 0:02:09.7]} 17.
f3 {[%clk 0:01:42.1]} 17... h4 {[%clk 0:02:07.7]} 18. Re2 {[%clk 0:01:28.9]}
18... Qg6 {[%clk 0:01:59.8]} 19. Bg2 {[%clk 0:01:26.6]} 19... Bxg2 {[%clk
0:01:59.4]} 20. Rxg2 {[%clk 0:01:27.5]} 20... h3 {[%clk 0:01:56.2]} 21. Rf2
{[%clk 0:01:25.1]} 21... Ne6 {[%clk 0:01:53.9]} 22. Kh1 {[%clk 0:01:22.1]} 22...
Bg5 {[%clk 0:01:52.1]} 23. Nb1 {[%clk 0:01:12.8]} 23... f5 {[%clk 0:01:46.5]}
24. Bxg5 {[%clk 0:01:04.1]} 24... Nxg5 {[%clk 0:01:43.8]} 25. Ra2 {[%clk
0:00:48.3]} 25... fxe4 {[%clk 0:01:29.2]} 26. fxe4 {[%clk 0:00:49.2]} 26... Rxf2
{[%clk 0:01:16.3]} 27. Qxf2 {[%clk 0:00:50.1]} 27... Nxe4 {[%clk 0:01:16.6]} 28.
Qf3 {[%clk 0:00:21.9]} 28... Rf8 {[%clk 0:01:14.7]} 29. Qe2 {[%clk 0:00:17.5]}
29... Rf2 {[%clk 0:00:51.4]} 30. Qxf2 {[%clk 0:00:17.9]} 30... Nxf2+ {[%clk
0:00:51.4]} 31. Rxf2 {[%clk 0:00:18.8]} 31... Qxd3 {[%clk 0:00:51.3]} 32. Nbd2
{[%clk 0:00:19.2]} 32... e4 {[%clk 0:00:48.2]} 33. Rf4 {[%clk 0:00:13.4]} 33...
e3 {[%clk 0:00:45.8]} 34. Ne4 {[%clk 0:00:13.9]} 34... e2 {[%clk 0:00:42.3]} 35.
Ned2 {[%clk 0:00:12.6]} 35... exf1=Q+ {[%clk 0:00:41.4]} 36. Nxf1 {[%clk
0:00:13.5]} 36... Qe2 {[%clk 0:00:40.6]} 37. Ne3 {[%clk 0:00:11.3]} 37... dxe3
{[%clk 0:00:40.5]} 0-1

[Event "Late-Titled-Tuesday-Blitz-February-27-2024"]
[Site "Chess.com"]
[Date "2024.02.27"]
[Round "6"]
[White "northridgehawk"]
[Black "pfalcon1949"]
[Result "1-0"]
[WhiteElo "2276"]
[BlackElo "1913"]
[TimeControl "180+1"]
[EndTime "15:05:19 PST"]
[Termination "northridgehawk won by resignation"]

1. e4 {[%clk 0:03:00.9]} 1... e6 {[%clk 0:02:59]} 2. Nc3 {[%clk 0:02:59.7]} 2...
d5 {[%clk 0:02:57.9]} 3. Nf3 {[%clk 0:03:00]} 3... Nf6 {[%clk 0:02:56.9]} 4. e5
{[%clk 0:02:59.7]} 4... Nfd7 {[%clk 0:02:56.5]} 5. d4 {[%clk 0:02:48.2]} 5... c5
{[%clk 0:02:55.6]} 6. dxc5 {[%clk 0:02:49.1]} 6... Nxc5 {[%clk 0:02:54.6]} 7.
Bf4 {[%clk 0:02:43.1]} 7... a6 {[%clk 0:02:53.9]} 8. h4 {[%clk 0:02:41.4]} 8...
Nc6 {[%clk 0:02:53.7]} 9. h5 {[%clk 0:02:41.4]} 9... h6 {[%clk 0:02:52.9]} 10.
Qd2 {[%clk 0:02:36.8]} 10... b5 {[%clk 0:02:49.7]} 11. O-O-O {[%clk 0:02:36.3]}
11... Bb7 {[%clk 0:02:49.1]} 12. Nd4 {[%clk 0:02:35]} 12... Qb6 {[%clk
0:02:41.9]} 13. Kb1 {[%clk 0:02:15]} 13... Rc8 {[%clk 0:02:34.9]} 14. Rh4 {[%clk
0:02:07.9]} 14... Na4 {[%clk 0:02:14.9]} 15. Nxd5 {[%clk 0:01:58.8]} 15... exd5
{[%clk 0:02:05.3]} 16. e6 {[%clk 0:01:55]} 16... Nxd4 {[%clk 0:02:01.2]} 17.
exf7+ {[%clk 0:01:54.7]} 17... Kxf7 {[%clk 0:02:00.5]} 18. Be3 {[%clk
0:01:53.1]} 18... Qc7 {[%clk 0:01:57.1]} 19. Bxd4 {[%clk 0:01:51.8]} 19... Be7
{[%clk 0:01:46.9]} 20. Rf4+ {[%clk 0:01:47.4]} 20... Kg8 {[%clk 0:01:45.7]} 21.
Bd3 {[%clk 0:01:46]} 21... Bg5 {[%clk 0:01:44.4]} 22. g3 {[%clk 0:01:34.3]}
22... Bxf4 {[%clk 0:01:42.2]} 23. gxf4 {[%clk 0:01:34.5]} 23... Rf8 {[%clk
0:01:28.7]} 24. Be5 {[%clk 0:01:33.3]} 24... Qd7 {[%clk 0:01:23.5]} 25. Rg1
{[%clk 0:01:33.5]} 25... Rf7 {[%clk 0:01:21.1]} 26. Bg6 {[%clk 0:01:31]} 26...
Re7 {[%clk 0:01:20.7]} 27. Qd4 {[%clk 0:01:30.5]} 27... Bc8 {[%clk 0:01:05.2]}
28. Bd3 {[%clk 0:01:12.8]} 28... Bb7 {[%clk 0:00:41.6]} 29. b3 {[%clk
0:01:06.7]} 29... Bc6 {[%clk 0:00:35]} 30. bxa4 {[%clk 0:01:05.1]} 30... bxa4
{[%clk 0:00:34.5]} 31. Rg6 {[%clk 0:00:55.1]} 31... a3 {[%clk 0:00:31.8]} 32.
Kc1 {[%clk 0:00:53.5]} 32... Qb7 {[%clk 0:00:30.2]} 33. Qc5 {[%clk 0:00:48.5]}
33... Be8 {[%clk 0:00:21.4]} 34. Rb6 {[%clk 0:00:39.1]} 34... Qd7 {[%clk
0:00:15.9]} 35. Rd6 {[%clk 0:00:38.7]} 35... Qb7 {[%clk 0:00:15.1]} 36. Rxd5
{[%clk 0:00:37.9]} 36... Rxe5 {[%clk 0:00:14]} 37. Rxe5 {[%clk 0:00:37.7]} 37...
Qb2+ {[%clk 0:00:13.6]} 38. Kd2 {[%clk 0:00:37.3]} 38... Bf7 {[%clk 0:00:12.1]}
39. Qc8+ {[%clk 0:00:34.7]} 1-0

[Event "Late-Titled-Tuesday-Blitz-February-27-2024"]
[Site "Chess.com"]
[Date "2024.02.27"]
[Round "6"]
[White "Yurovskykh_Oleksandr"]
[Black "AryanTari"]
[Result "0-1"]
[WhiteElo "2674"]
[BlackElo "2931"]
[TimeControl "180+1"]
[EndTime "15:05:20 PST"]
[Termination "AryanTari won by resignation"]

1. d4 {[%clk 0:03:00.9]} 1... d5 {[%clk 0:02:53.8]} 2. Bf4 {[%clk 0:03:00.2]}
2... c5 {[%clk 0:02:53.1]} 3. e3 {[%clk 0:02:59.6]} 3... cxd4 {[%clk 0:02:53.4]}
4. exd4 {[%clk 0:03:00.5]} 4... Nc6 {[%clk 0:02:53.6]} 5. c3 {[%clk 0:03:00.9]}
5... f6 {[%clk 0:02:52]} 6. Nf3 {[%clk 0:02:56.1]} 6... g5 {[%clk 0:02:50.8]} 7.
Bd2 {[%clk 0:02:15]} 7... Bf5 {[%clk 0:02:49.4]} 8. c4 {[%clk 0:02:09.8]} 8...
e6 {[%clk 0:02:48.3]} 9. h3 {[%clk 0:01:58.5]} 9... Bd6 {[%clk 0:02:37.5]} 10.
Qb3 {[%clk 0:01:56.2]} 10... Nge7 {[%clk 0:02:35.5]} 11. Nc3 {[%clk 0:01:53.3]}
11... O-O {[%clk 0:02:10.9]} 12. cxd5 {[%clk 0:01:36.5]} 12... Nb4 {[%clk
0:02:10.6]} 13. Rc1 {[%clk 0:01:32.7]} 13... Nexd5 {[%clk 0:01:59.2]} 14. Nxd5
{[%clk 0:01:29]} 14... Nxd5 {[%clk 0:01:57.2]} 15. Bc4 {[%clk 0:01:21.3]} 15...
Qd7 {[%clk 0:01:50.4]} 16. O-O {[%clk 0:01:11.2]} 16... Kh8 {[%clk 0:01:50.3]}
17. Rfe1 {[%clk 0:01:09.8]} 17... Rad8 {[%clk 0:01:44.7]} 18. Nh2 {[%clk
0:00:45.9]} 18... Qg7 {[%clk 0:01:32]} 19. Ng4 {[%clk 0:00:44.5]} 19... h5
{[%clk 0:01:28.3]} 20. Ne3 {[%clk 0:00:43.8]} 20... Nxe3 {[%clk 0:01:24.2]} 21.
Bxe3 {[%clk 0:00:30.2]} 21... e5 {[%clk 0:01:06.5]} 22. dxe5 {[%clk 0:00:24.3]}
22... Bxe5 {[%clk 0:01:07.4]} 23. Bxa7 {[%clk 0:00:22.7]} 23... g4 {[%clk
0:01:06.8]} 24. h4 {[%clk 0:00:20.4]} 24... g3 {[%clk 0:01:07]} 25. f3 {[%clk
0:00:20.6]} 25... Rd2 {[%clk 0:01:06.7]} 26. Re2 {[%clk 0:00:16.3]} 26... Qh6
{[%clk 0:00:53.9]} 27. Be3 {[%clk 0:00:15.2]} 27... Bd4 {[%clk 0:00:54.5]} 28.
Kf1 {[%clk 0:00:07.9]} 28... Rxe2 {[%clk 0:00:48]} 29. Bxh6 {[%clk 0:00:05.5]}
29... Rf2+ {[%clk 0:00:48.5]} 30. Ke1 {[%clk 0:00:05.8]} 30... Re8+ {[%clk
0:00:48.9]} 31. Kd1 {[%clk 0:00:05.1]} 31... Rxb2 {[%clk 0:00:42.8]} 32. Qa4
{[%clk 0:00:03.2]} 32... Rd8 {[%clk 0:00:41.3]} 33. Bd2 {[%clk 0:00:02.4]} 33...
Be3 {[%clk 0:00:37.5]} 34. Bd5 {[%clk 0:00:02.3]} 34... Rxd2+ {[%clk 0:00:37.6]}
35. Ke1 {[%clk 0:00:02.5]} 35... R2xd5 {[%clk 0:00:37.2]} 0-1

[Event "Late-Titled-Tuesday-Blitz-February-27-2024"]
[Site "Chess.com"]
[Date "2024.02.27"]
[Round "6"]
[White "grzechu96"]
[Black "chucksterf10"]
[Result "1-0"]
[WhiteElo "2751"]
[BlackElo "2584"]
[TimeControl "180+1"]
[EndTime "15:05:20 PST"]
[Termination "grzechu96 won on time"]

1. e4 {[%clk 0:03:00.9]} 1... a6 {[%clk 0:02:59]} 2. d4 {[%clk 0:03:00.9]} 2...
c6 {[%clk 0:02:59.4]} 3. Nf3 {[%clk 0:02:54.6]} 3... d5 {[%clk 0:02:59.5]} 4.
Nc3 {[%clk 0:02:53.5]} 4... Bg4 {[%clk 0:02:58.7]} 5. exd5 {[%clk 0:02:47.8]}
5... cxd5 {[%clk 0:02:58.4]} 6. h3 {[%clk 0:02:48.4]} 6... Bh5 {[%clk 0:02:57]}
7. g4 {[%clk 0:02:47.4]} 7... Bg6 {[%clk 0:02:56.7]} 8. Ne5 {[%clk 0:02:48.1]}
8... Nc6 {[%clk 0:02:55.3]} 9. h4 {[%clk 0:02:35]} 9... Nb4 {[%clk 0:01:47.1]}
10. Nxg6 {[%clk 0:02:26.9]} 10... hxg6 {[%clk 0:01:48]} 11. Bg2 {[%clk
0:02:23.6]} 11... e6 {[%clk 0:01:47.3]} 12. Be3 {[%clk 0:02:22.6]} 12... Rxh4
{[%clk 0:01:44.8]} 13. Rxh4 {[%clk 0:02:21.6]} 13... Qxh4 {[%clk 0:01:45.7]} 14.
Qe2 {[%clk 0:02:20]} 14... Nf6 {[%clk 0:01:43.8]} 15. g5 {[%clk 0:02:08.4]}
15... Ng4 {[%clk 0:01:30.9]} 16. Bf4 {[%clk 0:02:08.5]} 16... Nxf2 {[%clk
0:01:27]} 17. Be5 {[%clk 0:01:03.9]} 17... Ng4+ {[%clk 0:01:13]} 18. Kf1 {[%clk
0:01:02.9]} 18... Nxc2 {[%clk 0:01:10.1]} 19. Nxd5 {[%clk 0:00:55.2]} 19... exd5
{[%clk 0:00:51.9]} 20. Bf4+ {[%clk 0:00:55.5]} 20... Be7 {[%clk 0:00:36.8]} 21.
Qxc2 {[%clk 0:00:55.5]} 21... Nh2+ {[%clk 0:00:36.2]} 22. Bxh2 {[%clk
0:00:55.7]} 22... Qxh2 {[%clk 0:00:37.1]} 23. Qf2 {[%clk 0:00:19.4]} 23... Qd6
{[%clk 0:00:23.8]} 24. Kg1 {[%clk 0:00:17.3]} 24... Kf8 {[%clk 0:00:19.3]} 25.
Rf1 {[%clk 0:00:17]} 25... Qe6 {[%clk 0:00:17.3]} 26. Bh3 {[%clk 0:00:17.3]} 1-0

[Event "Late-Titled-Tuesday-Blitz-February-27-2024"]
[Site "Chess.com"]
[Date "2024.02.27"]
[Round "6"]
[White "fandebobbyfischer"]
[Black "Eeleyah"]
[Result "1/2-1/2"]
[WhiteElo "2687"]
[BlackElo "2348"]
[TimeControl "180+1"]
[EndTime "15:05:24 PST"]
[Termination "Game drawn by repetition"]

1. e4 {[%clk 0:03:00.9]} 1... c5 {[%clk 0:02:58.4]} 2. Nf3 {[%clk 0:03:01.2]}
2... Nc6 {[%clk 0:02:56.9]} 3. d4 {[%clk 0:02:58.4]} 3... cxd4 {[%clk
0:02:57.8]} 4. Nxd4 {[%clk 0:02:59.3]} 4... e5 {[%clk 0:02:58]} 5. Nb5 {[%clk
0:02:59.3]} 5... d6 {[%clk 0:02:58.3]} 6. N1c3 {[%clk 0:02:59.1]} 6... a6 {[%clk
0:02:58.5]} 7. Na3 {[%clk 0:02:59.7]} 7... b5 {[%clk 0:02:59.2]} 8. Nd5 {[%clk
0:02:59.9]} 8... Nge7 {[%clk 0:02:59.8]} 9. c4 {[%clk 0:02:55.6]} 9... Nd4
{[%clk 0:03:00.1]} 10. Be3 {[%clk 0:02:54.1]} 10... Nxd5 {[%clk 0:02:58.1]} 11.
exd5 {[%clk 0:02:50.1]} 11... Nf5 {[%clk 0:02:58.1]} 12. Bd2 {[%clk 0:02:46.6]}
12... g6 {[%clk 0:02:49.1]} 13. Bd3 {[%clk 0:02:46.2]} 13... Bg7 {[%clk
0:02:49.1]} 14. O-O {[%clk 0:02:46.6]} 14... O-O {[%clk 0:02:47.8]} 15. Rb1
{[%clk 0:02:40.8]} 15... Bd7 {[%clk 0:02:41.3]} 16. cxb5 {[%clk 0:02:26]} 16...
axb5 {[%clk 0:02:38.6]} 17. Nxb5 {[%clk 0:02:26.9]} 17... Rxa2 {[%clk
0:02:33.1]} 18. Nc3 {[%clk 0:02:26.7]} 18... Ra8 {[%clk 0:02:24.4]} 19. b4
{[%clk 0:02:26.8]} 19... Nd4 {[%clk 0:02:13.8]} 20. Ne4 {[%clk 0:02:12.4]} 20...
Ba4 {[%clk 0:02:07.9]} 21. Qe1 {[%clk 0:02:05.6]} 21... f5 {[%clk 0:02:06.1]}
22. Bg5 {[%clk 0:02:00.2]} 22... Qd7 {[%clk 0:01:57.6]} 23. Nc3 {[%clk
0:01:57.6]} 23... Bc2 {[%clk 0:01:29.9]} 24. Bxc2 {[%clk 0:01:51]} 24... Nxc2
{[%clk 0:01:30.8]} 25. Qd2 {[%clk 0:01:51.3]} 25... Nd4 {[%clk 0:01:30.4]} 26.
Be3 {[%clk 0:01:48.2]} 26... Nb5 {[%clk 0:01:07.5]} 27. Nxb5 {[%clk 0:01:37.5]}
27... Qxb5 {[%clk 0:01:08.4]} 28. f3 {[%clk 0:01:38.1]} 28... Rfc8 {[%clk
0:01:04.9]} 29. Rfc1 {[%clk 0:01:29.9]} 29... Rab8 {[%clk 0:00:59.6]} 30. Bg5
{[%clk 0:01:00]} 30... Rxc1+ {[%clk 0:00:49.2]} 31. Rxc1 {[%clk 0:01:00.9]}
31... Qxb4 {[%clk 0:00:39.8]} 32. Rc8+ {[%clk 0:01:00.3]} 32... Kf7 {[%clk
0:00:38.9]} 33. Rc7+ {[%clk 0:00:52.2]} 33... Kg8 {[%clk 0:00:39.1]} 34. Rc8+
{[%clk 0:00:51.8]} 34... Kf7 {[%clk 0:00:39.5]} 35. Rc7+ {[%clk 0:00:28.2]}
35... Kg8 {[%clk 0:00:39.3]} 36. Rc8+ {[%clk 0:00:04]} 1/2-1/2

[Event "Late-Titled-Tuesday-Blitz-February-27-2024"]
[Site "Chess.com"]
[Date "2024.02.27"]
[Round "6"]
[White "secretsuperstar7"]
[Black "FredddieCroderg"]
[Result "1-0"]
[WhiteElo "2509"]
[BlackElo "2278"]
[TimeControl "180+1"]
[EndTime "15:05:29 PST"]
[Termination "secretsuperstar7 won by resignation"]

1. c4 {[%clk 0:02:55.9]} 1... e6 {[%clk 0:02:58.6]} 2. Nc3 {[%clk 0:02:55.8]}
2... d5 {[%clk 0:02:56.7]} 3. e3 {[%clk 0:02:51.4]} 3... Nf6 {[%clk 0:02:56.1]}
4. Nf3 {[%clk 0:02:50.9]} 4... Be7 {[%clk 0:02:54.8]} 5. d4 {[%clk 0:02:50.9]}
5... O-O {[%clk 0:02:54.2]} 6. Be2 {[%clk 0:02:51.2]} 6... c5 {[%clk 0:02:52.6]}
7. cxd5 {[%clk 0:02:46.8]} 7... cxd4 {[%clk 0:02:50.1]} 8. Nxd4 {[%clk
0:02:44.4]} 8... exd5 {[%clk 0:02:47.7]} 9. O-O {[%clk 0:02:43.8]} 9... Nc6
{[%clk 0:02:47.1]} 10. b3 {[%clk 0:02:43.8]} 10... Nxd4 {[%clk 0:02:46.2]} 11.
Qxd4 {[%clk 0:02:43.5]} 11... Be6 {[%clk 0:02:43.7]} 12. Bb2 {[%clk 0:02:43.1]}
12... Rc8 {[%clk 0:02:39.4]} 13. Rfd1 {[%clk 0:02:40.5]} 13... Bc5 {[%clk
0:02:37.8]} 14. Qd3 {[%clk 0:02:40.2]} 14... Qe7 {[%clk 0:02:31.6]} 15. Bf3
{[%clk 0:02:37.5]} 15... Rfd8 {[%clk 0:02:18.1]} 16. Nb5 {[%clk 0:02:29.6]}
16... a6 {[%clk 0:01:54.8]} 17. Nd4 {[%clk 0:02:27.2]} 17... Ba3 {[%clk
0:01:53.8]} 18. Bc3 {[%clk 0:02:25.1]} 18... Qc5 {[%clk 0:01:47.7]} 19. Nxe6
{[%clk 0:02:20.6]} 19... fxe6 {[%clk 0:01:45.4]} 20. Bxf6 {[%clk 0:02:19.1]}
20... gxf6 {[%clk 0:01:44.7]} 21. Bg4 {[%clk 0:02:18.4]} 21... f5 {[%clk
0:01:38.8]} 22. Bf3 {[%clk 0:02:11.2]} 22... Qc2 {[%clk 0:01:33.4]} 23. Qf1
{[%clk 0:02:00.5]} 23... Rc5 {[%clk 0:01:19.9]} 24. Be2 {[%clk 0:01:56.2]} 24...
Rdc8 {[%clk 0:01:16.8]} 25. Bd3 {[%clk 0:01:55.8]} 25... Qb2 {[%clk 0:01:11.8]}
26. Rab1 {[%clk 0:01:28.3]} 26... Qf6 {[%clk 0:01:05.7]} 27. Qe2 {[%clk
0:01:21]} 27... Rc3 {[%clk 0:00:53.2]} 28. Qf3 {[%clk 0:01:07.9]} 28... R8c7
{[%clk 0:00:51.7]} 29. h3 {[%clk 0:01:05.9]} 29... Bd6 {[%clk 0:00:46.7]} 30.
Qe2 {[%clk 0:00:55.1]} 30... Qe5 {[%clk 0:00:44.8]} 31. Qh5 {[%clk 0:00:45]}
31... Rf7 {[%clk 0:00:26.1]} 32. g3 {[%clk 0:00:42.2]} 32... Bc5 {[%clk
0:00:19.4]} 33. Rbc1 {[%clk 0:00:41.4]} 33... Rxc1 {[%clk 0:00:18.5]} 34. Rxc1
{[%clk 0:00:41.7]} 34... Bxe3 {[%clk 0:00:18.2]} 35. Rc8+ {[%clk 0:00:41.8]}
35... Kg7 {[%clk 0:00:17.2]} 36. fxe3 {[%clk 0:00:34]} 36... Qxe3+ {[%clk
0:00:17]} 37. Kg2 {[%clk 0:00:34.4]} 37... Qd2+ {[%clk 0:00:11.8]} 38. Qe2
{[%clk 0:00:33]} 38... Qc3 {[%clk 0:00:11.1]} 39. Rxc3 {[%clk 0:00:28.4]} 1-0

[Event "Late-Titled-Tuesday-Blitz-February-27-2024"]
[Site "Chess.com"]
[Date "2024.02.27"]
[Round "6"]
[White "reevecanada"]
[Black "emeli_chess"]
[Result "1-0"]
[WhiteElo "2618"]
[BlackElo "2430"]
[TimeControl "180+1"]
[EndTime "15:05:31 PST"]
[Termination "reevecanada won by checkmate"]

1. e4 {[%clk 0:01:14.1]} 1... e5 {[%clk 0:02:57.6]} 2. Nf3 {[%clk 0:01:11.5]}
2... Nc6 {[%clk 0:02:56.7]} 3. d4 {[%clk 0:01:12.1]} 3... exd4 {[%clk
0:02:56.3]} 4. Nxd4 {[%clk 0:01:13]} 4... Bc5 {[%clk 0:02:55.9]} 5. Nb3 {[%clk
0:01:10.3]} 5... Bb6 {[%clk 0:02:55.6]} 6. Nc3 {[%clk 0:01:09.1]} 6... Nf6
{[%clk 0:02:55]} 7. Qe2 {[%clk 0:01:09.8]} 7... a5 {[%clk 0:02:30.2]} 8. Be3
{[%clk 0:01:04.5]} 8... Bxe3 {[%clk 0:02:22.5]} 9. Qxe3 {[%clk 0:01:03]} 9...
O-O {[%clk 0:02:16.8]} 10. O-O-O {[%clk 0:01:00.9]} 10... a4 {[%clk 0:02:15.4]}
11. Nd4 {[%clk 0:00:55.4]} 11... Nxd4 {[%clk 0:02:14.1]} 12. Rxd4 {[%clk
0:00:53]} 12... a3 {[%clk 0:02:14.1]} 13. b3 {[%clk 0:00:51.6]} 13... h6 {[%clk
0:01:53]} 14. Be2 {[%clk 0:00:48.5]} 14... c6 {[%clk 0:01:52.3]} 15. e5 {[%clk
0:00:40.2]} 15... Nh7 {[%clk 0:01:51.9]} 16. Rhd1 {[%clk 0:00:38.3]} 16... Qg5
{[%clk 0:01:44.1]} 17. f4 {[%clk 0:00:33.3]} 17... Qxg2 {[%clk 0:01:43.8]} 18.
Bf3 {[%clk 0:00:31.7]} 18... Qxh2 {[%clk 0:01:35.9]} 19. Rh1 {[%clk 0:00:30.2]}
19... Qg3 {[%clk 0:01:36]} 20. Ne2 {[%clk 0:00:29.5]} 20... Qg6 {[%clk
0:01:35.1]} 21. Rd6 {[%clk 0:00:27.2]} 21... f6 {[%clk 0:01:29.7]} 22. Bh5
{[%clk 0:00:25.1]} 22... Qg2 {[%clk 0:01:25.4]} 23. Bf3 {[%clk 0:00:17.3]} 23...
Qg6 {[%clk 0:01:25.1]} 24. Be4 {[%clk 0:00:16]} 24... Qf7 {[%clk 0:01:22.9]} 25.
Qd3 {[%clk 0:00:15.7]} 25... f5 {[%clk 0:01:21.5]} 26. Bf3 {[%clk 0:00:15.6]}
26... Qe7 {[%clk 0:01:06.1]} 27. Ng3 {[%clk 0:00:13.4]} 27... Ng5 {[%clk
0:00:40.9]} 28. Bh5 {[%clk 0:00:07.7]} 28... Ne4 {[%clk 0:00:38.2]} 29. Nxe4
{[%clk 0:00:07.4]} 29... fxe4 {[%clk 0:00:38.4]} 30. Qxe4 {[%clk 0:00:07.2]}
30... Ra5 {[%clk 0:00:33]} 31. Rg1 {[%clk 0:00:06]} 31... Rd5 {[%clk 0:00:30.7]}
32. Rxh6 {[%clk 0:00:04.8]} 32... d6 {[%clk 0:00:19.3]} 33. Qh7# {[%clk
0:00:04.4]} 1-0